bitfinex/quotes_BTCUSD_20250812
["timestamp","ask_amount","ask_price","bid_price","bid_amount"]
[1755016842864,0.002,119610.0,119600.0,0.38666733]
[1755016843095,0.002,119610.0,119600.0,0.95067593]
[1755016843753,2.28524293,119620.0,119610.0,0.31721009]
[1755016843971,2.28524293,119620.0,119610.0,0.96394194]
[1755016845037,2.28524293,119620.0,119610.0,0.39993334]
[1755016845259,2.28624293,119620.0,119610.0,0.40093334]
[1755016845465,2.28624293,119620.0,119610.0,0.96494194]
[1755016848312,2.28624293,119620.0,119610.0,1.34399094]
[1755016849460,2.28624293,119620.0,119610.0,1.36143996]
[1755016850538,1.68426715,119620.0,119610.0,1.53643996]
[1755016850752,1.56480714,119620.0,119610.0,1.53643996]
[1755016850962,1.39824826,119620.0,119610.0,1.53643996]
[1755016851197,1.15495332,119620.0,119610.0,1.53543996]
[1755016851412,0.99950303,119620.0,119610.0,1.67143996]
[1755016851636,0.87504072,119620.0,119610.0,1.67543996]
[1755016851810,0.72018793,119620.0,119610.0,1.67843996]
[1755016852042,0.56128085,119620.0,119610.0,1.67843996]
[1755016852463,0.56128085,119620.0,119610.0,1.52843996]
[1755016852694,0.56128085,119620.0,119610.0,1.52439996]
[1755016853556,0.56128085,119620.0,119610.0,1.52739996]
[1755016857895,0.17183808,119620.0,119610.0,1.52739996]
[1755016859583,0.17183808,119620.0,119610.0,1.55248196]
[1755016861257,0.17183808,119620.0,119610.0,0.98847336]
[1755016861466,0.17183808,119620.0,119610.0,1.55224196]
[1755016861680,0.17183808,119620.0,119610.0,1.52724196]
[1755016861886,0.17183808,119620.0,119610.0,1.53451096]
[1755016862318,0.17183808,119620.0,119610.0,1.38134194]
[1755016862527,0.17183808,119620.0,119610.0,0.94546236]
[1755016862749,0.17183808,119620.0,119610.0,1.50947096]
[1755016862987,0.17183808,119620.0,119610.0,1.37315296]
[1755016863194,0.17183808,119620.0,119610.0,1.48264896]
[1755016863398,0.17183808,119620.0,119610.0,1.47903096]
[1755016863608,0.17183808,119620.0,119610.0,1.48203096]
[1755016863809,0.17183808,119620.0,119610.0,1.47903096]
[1755016864026,0.17183808,119620.0,119610.0,1.21139096]
[1755016864225,0.17183808,119620.0,119610.0,1.63905994]
[1755016864653,0.17183808,119620.0,119610.0,1.65650896]
[1755016864851,0.17183808,119620.0,119610.0,2.03150896]
[1755016865775,1e-08,119620.0,119610.0,2.03150896]
[1755016866650,1e-08,119620.0,119610.0,2.02826896]
[1755016866883,1e-08,119620.0,119610.0,2.02626896]
[1755016867062,1e-08,119620.0,119610.0,2.03226896]
[1755016867304,1e-08,119620.0,119610.0,2.46083756]
[1755016867504,1e-08,119620.0,119610.0,2.59627756]
[1755016868032,1e-08,119620.0,119610.0,2.68430756]
[1755016868230,1e-08,119620.0,119610.0,2.70104756]
[1755016869395,1e-08,119620.0,119610.0,2.69804756]
[1755016869596,1e-08,119620.0,119610.0,2.70204756]
[1755016869806,1e-08,119620.0,119610.0,2.72704756]
[1755016870015,1e-08,119620.0,119610.0,2.72404756]
[1755016870253,1e-08,119620.0,119610.0,2.72004756]
[1755016870469,1e-08,119620.0,119610.0,2.72504756]
[1755016870890,0.0676104,119650.0,119640.0,0.93461719]
[1755016871101,1e-08,119650.0,119640.0,5.54686264]
[1755016871528,1e-08,119650.0,119640.0,5.07543264]
[1755016871759,1e-08,119650.0,119640.0,5.10050664]
[1755016871944,1e-08,119650.0,119640.0,5.05608464]
[1755016872155,1e-08,119650.0,119640.0,4.43763104]
[1755016873044,1e-08,119650.0,119640.0,3.68010904]
[1755016873300,1e-08,119650.0,119640.0,4.24511764]
[1755016874460,1e-08,119650.0,119640.0,3.68110904]
[1755016874878,0.0676104,119670.0,119660.0,0.74214023]
[1755016875054,0.06775719,119670.0,119660.0,0.98071777]
[1755016875473,0.63176579,119670.0,119660.0,0.42047777]
[1755016875687,0.63176579,119670.0,119660.0,0.55571777]
[1755016875897,0.79889205,119670.0,119660.0,0.38857754]
[1755016876746,0.80189205,119670.0,119660.0,0.25333754]
[1755016876955,0.80189205,119670.0,119660.0,0.23853754]
[1755016877383,0.80789205,119670.0,119660.0,0.23853754]
[1755016877789,0.80789205,119670.0,119660.0,0.21792325]
[1755016878297,0.79889205,119670.0,119660.0,0.08272325]
[1755016878512,0.88137648,119670.0,119660.0,0.21792325]
[1755016878720,0.80189205,119670.0,119660.0,0.21792325]
[1755016878928,0.80189205,119670.0,119660.0,0.08272325]
[1755016879149,0.81934107,119670.0,119660.0,0.21792325]
[1755016879365,0.81934107,119670.0,119660.0,0.19212034]
[1755016879575,0.82734107,119670.0,119660.0,0.19212034]
[1755016879784,0.87941115,119670.0,119660.0,0.19212034]
[1755016879999,0.82734107,119670.0,119660.0,0.19212034]
[1755016881077,0.75973067,119670.0,119660.0,0.19212034]
[1755016885330,0.75973067,119670.0,119660.0,0.05692034]
[1755016885573,0.16715419,119650.0,119630.0,0.17552877]
[1755016885792,0.16715419,119650.0,119640.0,0.21792325]
[1755016885793,0.16976597,119650.0,119640.0,0.21792325]
[1755016886005,0.16976597,119650.0,119640.0,0.36792325]
[1755016886406,0.17276597,119650.0,119640.0,0.21792325]
[1755016886661,0.17015419,119650.0,119640.0,0.08272325]
[1755016886867,0.17015419,119650.0,119640.0,0.36792325]
[1755016887077,0.73916279,119650.0,119640.0,0.36792325]
[1755016888117,0.73916279,119650.0,119640.0,0.23272325]
[1755016888324,0.73916279,119650.0,119640.0,0.36792325]
[1755016890297,0.17515419,119650.0,119640.0,0.36792325]
[1755016890500,0.73916279,119650.0,119640.0,0.36792325]
[1755016891053,0.83909624,119650.0,119640.0,0.08272325]
[1755016891255,0.75661181,119650.0,119640.0,0.21792325]
[1755016891496,0.75661181,119650.0,119640.0,0.08272325]
[1755016891671,0.75661181,119650.0,119640.0,0.21792325]
[1755016892151,0.75860181,119650.0,119640.0,0.21792325]
[1755016892765,0.19459321,119650.0,119640.0,0.21792325]
[1755016893069,0.75360181,119650.0,119640.0,0.21792325]
[1755016893300,0.75860181,119650.0,119640.0,0.21792325]
[1755016893656,0.75960181,119650.0,119640.0,0.21792325]
[1755016893902,0.84208624,119650.0,119640.0,0.21792325]
[1755016894930,0.75960181,119650.0,119640.0,0.21792325]
[1755016896261,0.16718214,119630.0,119620.0,0.15]
[1755016896476,0.73318074,119630.0,119620.0,0.36792325]
[1755016896687,0.73633074,119630.0,119620.0,0.21792325]
[1755016896921,0.75377976,119630.0,119620.0,0.21792325]
[1755016897404,0.75477976,119630.0,119620.0,0.21792325]
[1755016897615,0.75477976,119630.0,119620.0,0.21841106]
[1755016897992,0.19077116,119630.0,119620.0,0.21841106]
[1755016898219,0.75777976,119630.0,119620.0,0.21841106]
[1755016898444,0.19277116,119630.0,119620.0,0.21841106]
[1755016898648,0.75677976,119630.0,119620.0,0.21841106]
[1755016899487,0.75377976,119630.0,119620.0,0.21841106]
[1755016899699,0.75677976,119630.0,119620.0,0.21841106]
[1755016902422,0.75777976,119630.0,119620.0,0.21841106]
[1755016905687,0.19377116,119630.0,119620.0,0.21841106]
[1755016905895,0.75777976,119630.0,119620.0,0.21841106]
[1755016907414,0.19377116,119630.0,119620.0,0.21841106]
[1755016907639,0.75777976,119630.0,119620.0,0.21841106]
[1755016910900,0.19377116,119630.0,119620.0,0.21841106]
[1755016911111,0.75777976,119630.0,119620.0,0.21841106]
[1755016916074,0.75777976,119630.0,119620.0,0.21829106]
[1755016916949,0.19377116,119630.0,119620.0,0.21829106]
[1755016917147,0.75777976,119630.0,119620.0,0.21829106]
[1755016919062,0.75777976,119630.0,119620.0,0.38548718]
[1755016919824,0.75777976,119630.0,119620.0,0.21829106]
[1755016920912,0.84026419,119630.0,119620.0,0.13552781]
[1755016921766,0.75777976,119630.0,119620.0,0.13552781]
[1755016923128,0.76611584,119630.0,119620.0,0.13552781]
[1755016923342,0.75777976,119630.0,119620.0,0.13552781]
[1755016924505,0.76620011,119630.0,119620.0,0.13552781]
[1755016924727,0.75777976,119630.0,119620.0,0.13552781]
[1755016927600,0.75777976,119630.0,119620.0,0.00048781]
[1755016927809,0.75777976,119630.0,119620.0,0.13548781]
[1755016928040,0.73577976,119630.0,119620.0,0.13548781]
[1755016937267,0.73063976,119630.0,119620.0,0.22031106]
[1755016938333,0.16663116,119630.0,119620.0,0.22031106]
[1755016938541,0.73325198,119630.0,119620.0,0.22031106]
[1755016938756,0.73063976,119630.0,119620.0,0.22031106]
[1755016939639,0.73272976,119630.0,119620.0,0.22031106]
[1755016939855,0.17182116,119630.0,119620.0,0.21821106]
[1755016940079,0.73582976,119630.0,119620.0,0.08321106]
[1755016940305,0.73582976,119630.0,119620.0,0.21813106]
[1755016941456,0.73582976,119630.0,119620.0,0.13536781]
[1755016942330,0.81831419,119630.0,119620.0,0.13536781]
[1755016943751,0.73582976,119630.0,119620.0,0.13536781]
[1755016945185,0.73328074,119630.0,119620.0,0.13536781]
[1755016945606,0.16927214,119630.0,119620.0,0.13536781]
[1755016945871,0.73328074,119630.0,119620.0,0.13536781]
[1755016946998,0.75072976,119630.0,119620.0,0.13536781]
[1755016947223,0.81225177,119630.0,119620.0,0.13536781]
[1755016948109,0.75382976,119630.0,119620.0,0.13536781]
[1755016948341,0.75382976,119630.0,119620.0,0.00048781]
[1755016948570,0.75382976,119630.0,119620.0,0.13528781]
[1755016949974,0.77892676,119630.0,119620.0,0.13528781]
[1755016950406,0.77892676,119630.0,119620.0,0.00048781]
[1755016950881,0.86141119,119630.0,119620.0,0.00048781]
[1755016961527,0.99605119,119630.0,119620.0,1e-08]
[1755016961743,1.64278304,119630.0,119620.0,1e-08]
[1755016961972,1.67230304,119630.0,119620.0,1e-08]
[1755016962839,1.10829444,119630.0,119620.0,1e-08]
[1755016963043,1.11229444,119630.0,119620.0,1e-08]
[1755016963443,1.67630304,119630.0,119620.0,1e-08]
[1755016963810,1.68030304,119630.0,119620.0,1e-08]
[1755016964208,1.59781861,119630.0,119620.0,1e-08]
[1755016968082,0.46980141,119630.0,119620.0,1e-08]
[1755016968339,1.03381001,119630.0,119620.0,1e-08]
[1755016970868,1.00429001,119630.0,119620.0,1e-08]
[1755016979126,1.56829861,119630.0,119620.0,1e-08]
[1755016979348,1.65078304,119630.0,119620.0,1e-08]
[1755016979554,1.08677444,119630.0,119620.0,1e-08]
[1755016981126,1.65078304,119630.0,119620.0,1e-08]
[1755016983866,1.70098304,119630.0,119620.0,1e-08]
[1755016984076,1.65078304,119630.0,119620.0,1e-08]
[1755016984314,1.79554583,119630.0,119620.0,1e-08]
[1755016985664,0.53288863,119630.0,119620.0,1e-08]
[1755016985899,1.23137723,119630.0,119620.0,1e-08]
[1755016986149,0.16725065,119590.0,119570.0,0.00396]
[1755016986370,0.73387395,119580.0,119570.0,0.08668325]
[1755016986591,0.73126064,119580.0,119570.0,0.08668325]
[1755016986818,0.74870966,119580.0,119570.0,0.00591]
[1755016987479,0.74875856,119580.0,119570.0,0.00591]
[1755016987911,0.77386256,119580.0,119570.0,0.00591]
[1755016988612,0.77386256,119580.0,119570.0,0.00791]
[1755016988829,0.77386256,119580.0,119570.0,0.00991]
[1755016989039,0.77386256,119580.0,119570.0,0.00591]
[1755016991410,0.77386256,119580.0,119570.0,0.00777]
[1755016991969,0.77386256,119580.0,119570.0,0.00591]
[1755016992187,0.85634699,119580.0,119570.0,0.00591]
[1755016993450,0.86453889,119580.0,119570.0,0.00591]
[1755016993796,0.30053029,119580.0,119570.0,0.00591]
[1755016993964,0.86453889,119580.0,119570.0,0.00591]
[1755016994848,0.85634699,119580.0,119570.0,0.00591]
[1755016995459,0.86148699,119580.0,119570.0,0.00591]
[1755016995676,0.85634699,119580.0,119570.0,0.00591]
[1755016996546,0.86148699,119580.0,119570.0,0.00396]
[1755016996743,0.86967756,119580.0,119570.0,0.00396]
[1755016997457,1.00407756,119580.0,119570.0,0.00396]
[1755016998960,0.92159313,119580.0,119570.0,0.00396]
[1755016999346,0.78719313,119580.0,119570.0,0.00396]
[1755017000583,0.22318453,119580.0,119570.0,0.00396]
[1755017000803,0.78719313,119580.0,119570.0,0.00396]
[1755017003517,0.92155313,119580.0,119570.0,0.00396]
[1755017003746,1.00403756,119580.0,119570.0,0.00396]
[1755017005561,1.00603756,119580.0,119570.0,0.00396]
[1755017005996,1.00703756,119580.0,119570.0,0.00396]
[1755017006804,0.87267756,119580.0,119570.0,0.00396]
[1755017007660,1.00703756,119580.0,119570.0,0.00396]
[1755017007879,1.65376941,119580.0,119570.0,1e-08]
[1755017010016,0.16726603,119570.0,119560.0,0.1019624]
[1755017010243,1.62009346,119570.0,119560.0,1e-08]
[1755017010435,1.61747993,119570.0,119560.0,1e-08]
[1755017011020,1.64259093,119570.0,119560.0,1e-08]
[1755017011966,1.64559093,119570.0,119560.0,1e-08]
[1755017013458,1.64759093,119570.0,119560.0,1e-08]
[1755017022079,0.38525373,119570.0,119560.0,1e-08]
[1755017022268,0.86131908,119570.0,119560.0,0.00216001]
[1755017022742,0.76138563,119570.0,119560.0,0.00402001]
[1755017023175,0.77883465,119570.0,119560.0,0.00216001]
[1755017023591,0.77583465,119570.0,119560.0,0.00216001]
[1755017023814,0.77383465,119570.0,119560.0,0.00216001]
[1755017024029,0.77483465,119570.0,119560.0,0.00402001]
[1755017024244,0.85831908,119570.0,119560.0,0.00402001]
[1755017024482,0.16926603,119570.0,119560.0,0.00402001]
[1755017024709,0.73327463,119570.0,119560.0,0.00402001]
[1755017025148,0.73327463,119570.0,119560.0,0.08674326]
[1755017025359,0.73227463,119570.0,119560.0,0.08674326]
[1755017025584,0.73127463,119570.0,119560.0,0.22094326]
[1755017025800,0.73127463,119570.0,119560.0,0.23030243]
[1755017026252,0.16726603,119570.0,119560.0,0.23030243]
[1755017026462,0.73388816,119570.0,119560.0,0.23230243]
[1755017026680,0.73127463,119570.0,119560.0,0.23230243]
[1755017026980,0.73127463,119570.0,119560.0,0.22930243]
[1755017027190,0.73127463,119570.0,119560.0,0.23130243]
[1755017027401,0.73127463,119570.0,119560.0,0.22294326]
[1755017027607,0.73127463,119570.0,119560.0,0.22394326]
[1755017027822,0.81375906,119570.0,119560.0,0.22394326]
[1755017028238,0.73127463,119570.0,119560.0,0.22394326]
[1755017028856,0.16726603,119570.0,119560.0,0.22394326]
[1755017029035,0.73388816,119570.0,119560.0,0.22394326]
[1755017029274,0.73127463,119570.0,119560.0,0.22394326]
[1755017029901,0.73127463,119570.0,119560.0,0.22208326]
[1755017030085,1.40043668,119570.0,119560.0,0.00300001]
[1755017030334,1.53459668,119570.0,119560.0,0.00300001]
[1755017030539,1.55970468,119570.0,119560.0,0.00300001]
[1755017031606,1.55970468,119570.0,119560.0,0.00200001]
[1755017032716,1.56070468,119570.0,119560.0,0.00200001]
[1755017033147,1.56070468,119570.0,119560.0,1e-08]
[1755017033361,1.56170468,119570.0,119560.0,1e-08]
[1755017033815,0.43368748,119570.0,119560.0,1e-08]
[1755017034029,1.56170468,119570.0,119560.0,1e-08]
[1755017039234,0.99761608,119570.0,119560.0,0.00214001]
[1755017039653,0.85831608,119570.0,119560.0,0.00214001]
[1755017040937,0.86135608,119570.0,119560.0,0.00214001]
[1755017041581,1.42744468,119570.0,119560.0,1e-08]
[1755017042929,0.29942748,119570.0,119560.0,1e-08]
[1755017043159,1.42744468,119570.0,119560.0,1e-08]
[1755017043383,1.42744468,119570.0,119560.0,0.00214001]
[1755017043808,1.42744468,119570.0,119560.0,1e-08]
[1755017044872,1.56148468,119570.0,119560.0,1e-08]
[1755017050981,0.85831608,119570.0,119560.0,0.00214001]
[1755017052679,0.86135608,119570.0,119560.0,0.00214001]
[1755017052923,0.85831608,119570.0,119560.0,0.00214001]
[1755017054110,0.21182305,119570.0,119560.0,0.00214001]
[1755017054353,0.73327463,119570.0,119560.0,0.08672326]
[1755017055017,0.73327463,119570.0,119560.0,0.08486326]
[1755017056026,0.73327463,119570.0,119560.0,0.21882326]
[1755017056486,0.73327463,119570.0,119560.0,0.22068326]
[1755017057958,0.81575906,119570.0,119560.0,0.21882326]
[1755017059383,0.83832808,119570.0,119560.0,0.13388001]
[1755017063703,0.27431948,119570.0,119560.0,0.13388001]
[1755017063922,0.75584365,119570.0,119560.0,0.13602001]
[1755017065910,0.18671505,119570.0,119560.0,0.13602001]
[1755017066128,0.75072365,119570.0,119560.0,0.13602001]
[1755017066360,0.75072365,119570.0,119560.0,0.21874326]
[1755017066577,0.75072365,119570.0,119560.0,0.22060326]
[1755017066806,0.16926603,119570.0,119560.0,0.38788328]
[1755017066990,0.16926603,119570.0,119560.0,0.22060326]
[1755017067212,0.73327463,119570.0,119560.0,0.22060326]
[1755017067869,0.73327463,119570.0,119560.0,0.38788328]
[1755017068123,0.73327463,119570.0,119560.0,0.22060326]
[1755017068560,0.73327463,119570.0,119560.0,0.21874326]
[1755017069055,0.81575906,119570.0,119560.0,0.21874326]
[1755017069495,0.73327463,119570.0,119560.0,0.21874326]
[1755017070200,0.73644463,119570.0,119560.0,0.21874326]
[1755017070407,0.73840463,119570.0,119560.0,0.21874326]
[1755017071059,0.73644463,119570.0,119560.0,0.21874326]
[1755017071264,0.73840463,119570.0,119560.0,0.21874326]
[1755017072348,0.73840463,119570.0,119560.0,0.08486326]
[1755017072550,0.73840463,119570.0,119560.0,0.21862326]
[1755017073019,1.37829087,119570.0,119560.0,1e-08]
[1755017073242,1.51205087,119570.0,119560.0,1e-08]
[1755017073653,1.53715987,119570.0,119560.0,1e-08]
[1755017076235,1.40339987,119570.0,119560.0,1e-08]
[1755017078032,0.83939127,119570.0,119560.0,1e-08]
[1755017078908,0.83939127,119570.0,119560.0,0.13368001]
[1755017079133,0.78096265,119570.0,119560.0,0.13571001]
[1755017081863,0.21695405,119570.0,119560.0,0.13571001]
[1755017082103,0.78096265,119570.0,119560.0,0.13571001]
[1755017082967,0.77583265,119570.0,119560.0,0.13571001]
[1755017083133,0.85831708,119570.0,119560.0,0.13571001]
[1755017083545,0.86148708,119570.0,119560.0,0.13571001]
[1755017084441,0.85831708,119570.0,119560.0,0.13571001]
[1755017084657,0.73327463,119570.0,119560.0,0.21843326]
[1755017085718,0.16826603,119570.0,119560.0,0.21843326]
[1755017085898,0.73488816,119570.0,119560.0,0.21843326]
[1755017086100,0.73227463,119570.0,119560.0,0.21843326]
[1755017086421,0.73227463,119570.0,119560.0,0.22029326]
[1755017086633,0.16826603,119570.0,119560.0,0.22029326]
[1755017086851,0.16826603,119570.0,119560.0,0.38757328]
[1755017087901,0.16726603,119570.0,119560.0,0.38757328]
[1755017088180,0.16726603,119570.0,119560.0,0.38857328]
[1755017088384,0.16726603,119570.0,119560.0,0.38671328]
[1755017088586,0.16726603,119570.0,119560.0,0.38871328]
[1755017088949,0.16726603,119570.0,119560.0,0.22143326]
[1755017089621,0.73127463,119570.0,119560.0,0.22143326]
[1755017091003,0.73444463,119570.0,119560.0,0.22143326]
[1755017091414,0.17043603,119570.0,119560.0,0.22143326]
[1755017091631,0.73640463,119570.0,119560.0,0.22143326]
[1755017095128,0.73127463,119570.0,119560.0,0.38871328]
[1755017095354,0.73127463,119570.0,119560.0,0.22143326]
[1755017096049,0.17043603,119570.0,119560.0,0.22143326]
[1755017096254,0.73444463,119570.0,119560.0,0.22143326]
[1755017096744,0.73640463,119570.0,119560.0,0.22143326]
[1755017098782,0.17239603,119570.0,119560.0,0.22143326]
[1755017099002,0.73640463,119570.0,119560.0,0.22143326]
[1755017099764,0.73127463,119570.0,119560.0,0.22143326]
[1755017099941,0.16726603,119570.0,119560.0,0.22143326]
[1755017100195,0.73127463,119570.0,119560.0,0.22143326]
[1755017100615,0.73655463,119570.0,119560.0,0.22143326]
[1755017101256,0.17254603,119570.0,119560.0,0.22143326]
[1755017101482,0.73655463,119570.0,119560.0,0.22143326]
[1755017101707,0.73655463,119570.0,119560.0,0.21912326]
[1755017104888,0.17254603,119570.0,119560.0,0.21912326]
[1755017105097,0.77053933,119570.0,119560.0,0.21912326]
[1755017105258,0.77053933,119570.0,119560.0,0.21656326]
[1755017105653,0.77053933,119570.0,119560.0,0.19461326]
[1755017105867,0.73127463,119570.0,119560.0,0.19658326]
[1755017106074,0.73127463,119570.0,119560.0,0.06318326]
[1755017106298,0.73655463,119570.0,119560.0,0.19457326]
[1755017106498,0.73655463,119570.0,119560.0,0.06121326]
[1755017106714,0.73655463,119570.0,119560.0,0.19457326]
[1755017107625,0.73127463,119570.0,119560.0,0.19654326]
[1755017107832,0.73655463,119570.0,119560.0,0.19654326]
[1755017108047,0.73655463,119570.0,119560.0,0.19457326]
[1755017108269,0.73655463,119570.0,119560.0,0.19654326]
[1755017108481,0.73442463,119570.0,119560.0,0.19654326]
[1755017108704,0.73127463,119570.0,119560.0,0.19654326]
[1755017109363,0.73655463,119570.0,119560.0,0.19654326]
[1755017113659,0.73442463,119570.0,119560.0,0.36382328]
[1755017113882,0.73127463,119570.0,119560.0,0.36382328]
[1755017114540,0.81375906,119570.0,119560.0,0.36382328]
[1755017114808,0.73127463,119570.0,119560.0,0.36382328]
[1755017115006,0.5640086,119570.0,119560.0,0.36382328]
[1755017115192,0.5640086,119570.0,119560.0,0.36568328]
[1755017115434,0.17045094,119580.0,119570.0,0.16726603]
[1755017115654,0.77582693,119580.0,119570.0,0.25195928]
[1755017116347,0.77582693,119580.0,119570.0,0.08469325]
[1755017116764,0.77795693,119580.0,119570.0,0.08569325]
[1755017116973,0.77795693,119580.0,119570.0,0.08282125]
[1755017117203,0.73658954,119580.0,119570.0,0.08282125]
[1755017118075,0.73658954,119580.0,119570.0,0.08479513]
[1755017118551,0.73658954,119580.0,119570.0,0.08282125]
[1755017118760,0.73658954,119580.0,119570.0,0.08282513]
[1755017119222,0.73445954,119580.0,119570.0,0.25206116]
[1755017119438,0.73445954,119580.0,119570.0,0.25008728]
[1755017120140,0.81694397,119580.0,119570.0,0.25008728]
[1755017120352,0.73445954,119580.0,119570.0,0.08282125]
[1755017120561,0.73445954,119580.0,119570.0,0.08479513]
[1755017120975,0.73658954,119580.0,119570.0,0.08479513]
[1755017122271,0.73445954,119580.0,119570.0,0.08479513]
[1755017122457,0.73658954,119580.0,119570.0,0.08479513]
[1755017122677,0.81907397,119580.0,119570.0,0.08479513]
[1755017123303,0.81907397,119580.0,119570.0,0.08282513]
[1755017123941,0.73658954,119580.0,119570.0,0.08282513]
[1755017124369,0.73658954,119580.0,119570.0,0.08085125]
[1755017125006,0.73658954,119580.0,119570.0,0.13412]
[1755017125007,0.75403856,119580.0,119570.0,0.13412]
[1755017125238,1.31804716,119580.0,119570.0,0.13412]
[1755017125449,0.75403856,119580.0,119570.0,0.13412]
[1755017131271,0.82213048,119580.0,119570.0,0.13412]
[1755017131984,0.73658954,119580.0,119570.0,0.21684325]
[1755017133772,0.17258094,119580.0,119570.0,0.21684325]
[1755017133984,0.73658954,119580.0,119570.0,0.21684325]
[1755017136280,0.17258094,119580.0,119570.0,0.21684325]
[1755017136503,0.73658954,119580.0,119570.0,0.21684325]
[1755017138087,0.17258094,119580.0,119570.0,0.21684325]
[1755017138299,0.77140889,119580.0,119570.0,0.21684325]
[1755017138521,0.77140889,119580.0,119570.0,0.21668325]
[1755017141314,0.73658954,119580.0,119570.0,0.21668325]
[1755017142181,0.75403856,119580.0,119570.0,0.13392]
[1755017143775,1.45092716,119580.0,119570.0,0.001]
[1755017143980,1.47737716,119580.0,119570.0,0.001]
[1755017144411,1.50248416,119580.0,119570.0,0.001]
[1755017144646,1.58496859,119580.0,119570.0,0.001]
[1755017145565,1.02195999,119580.0,119570.0,0.001]
[1755017146197,0.58471505,119570.0,119560.0,0.13288]
[1755017146414,1.15079365,119570.0,119560.0,0.13288]
[1755017146632,1.71786225,119570.0,119560.0,0.13288]
[1755017146859,1.80034668,119570.0,119560.0,0.13288]
[1755017147078,0.16729401,119550.0,119540.0,0.00835177]
[1755017147296,0.73391657,119550.0,119540.0,0.22597502]
[1755017147518,0.73130261,119550.0,119540.0,0.22597502]
[1755017147742,0.73436261,119550.0,119540.0,0.22597502]
[1755017150202,0.73436261,119550.0,119540.0,0.22997502]
[1755017151200,0.73436261,119550.0,119540.0,0.23097502]
[1755017152821,0.73643261,119550.0,119540.0,0.23097502]
[1755017157610,0.17242401,119550.0,119540.0,0.23097502]
[1755017157821,0.73643261,119550.0,119540.0,0.23097502]
[1755017158656,0.16729401,119550.0,119540.0,0.23097502]
[1755017158858,0.16729401,119550.0,119540.0,0.39828303]
[1755017160876,0.16729401,119550.0,119540.0,0.23097502]
[1755017161082,0.16729401,119550.0,119540.0,0.39828303]
[1755017162113,0.16729401,119550.0,119540.0,0.40014303]
[1755017163747,0.16729256,119560.0,119540.0,0.40014303]
[1755017163945,0.16729256,119560.0,119550.0,0.08469814]
[1755017164197,0.73130116,119560.0,119550.0,0.25396215]
[1755017164491,0.16729256,119560.0,119550.0,0.25198726]
[1755017164749,0.16729256,119560.0,119550.0,0.08655325]
[1755017165015,0.16729256,119560.0,119550.0,0.25396201]
[1755017165242,0.16729256,119560.0,119550.0,0.25198726]
[1755017165672,0.16729256,119560.0,119550.0,0.40198726]
[1755017166100,0.16729256,119560.0,119550.0,0.40298726]
[1755017166313,0.16729256,119560.0,119550.0,0.40498726]
[1755017168394,0.74284793,119570.0,119560.0,0.16728002]
[1755017168604,0.17562933,119570.0,119560.0,0.38654758]
[1755017168820,0.73963793,119570.0,119560.0,0.21729325]
[1755017169039,0.17562933,119570.0,119560.0,0.21729325]
[1755017169465,0.17883933,119570.0,119560.0,0.21729325]
[1755017170118,0.17562933,119570.0,119560.0,0.38557327]
[1755017170328,0.73963793,119570.0,119560.0,0.21829325]
[1755017170633,0.73963793,119570.0,119560.0,0.22029325]
[1755017170842,0.74284793,119570.0,119560.0,0.38757327]
[1755017171146,0.17883933,119570.0,119560.0,0.38757327]
[1755017171311,0.74384793,119570.0,119560.0,0.38757327]
[1755017171931,0.74284793,119570.0,119560.0,0.22029325]
[1755017172151,0.74480793,119570.0,119560.0,0.22029325]
[1755017172583,0.74480793,119570.0,119560.0,0.21832325]
[1755017173001,0.74480793,119570.0,119560.0,0.22029325]
[1755017173649,0.74224793,119570.0,119560.0,0.21832325]
[1755017173857,0.17823933,119570.0,119560.0,0.38757327]
[1755017174074,0.17051094,119580.0,119570.0,0.15]
[1755017174298,0.73451954,119580.0,119570.0,0.23666713]
[1755017174499,0.73451954,119580.0,119570.0,0.23469325]
[1755017174500,0.73647954,119580.0,119570.0,0.23469325]
[1755017174914,0.17247094,119580.0,119570.0,0.23469325]
[1755017175162,0.17151094,119580.0,119570.0,0.40195928]
[1755017175362,0.17151094,119580.0,119570.0,0.23469325]
[1755017175980,0.17151094,119580.0,119570.0,0.40195928]
[1755017176186,0.17151094,119580.0,119570.0,0.23469325]
[1755017176398,0.16830094,119580.0,119570.0,0.23469325]
[1755017176974,0.17151094,119580.0,119570.0,0.23469325]
[1755017177810,0.17051094,119580.0,119570.0,0.23469325]
[1755017178235,0.17051094,119580.0,119570.0,0.40195928]
[1755017178451,0.16730094,119580.0,119570.0,0.40195928]
[1755017179320,0.16730094,119580.0,119570.0,0.40295928]
[1755017182051,4.89e-05,119580.0,119570.0,0.40295928]
[1755017182259,0.17247094,119580.0,119570.0,0.23372325]
[1755017182464,0.73647954,119580.0,119570.0,0.23372325]
[1755017182673,0.73647954,119580.0,119570.0,0.40098928]
[1755017183095,0.17247094,119580.0,119570.0,0.40098928]
[1755017183322,0.0052189,119580.0,119570.0,0.40098928]
[1755017183536,0.0052189,119580.0,119570.0,0.40295928]
[1755017183750,0.17247094,119580.0,119570.0,0.40295928]
[1755017187216,4.89e-05,119580.0,119570.0,0.40295928]
[1755017188085,4.89e-05,119580.0,119570.0,0.96882788]
[1755017188491,4.89e-05,119580.0,119570.0,0.40481928]
[1755017188842,4.89e-05,119580.0,119570.0,0.96882788]
[1755017189178,4.89e-05,119580.0,119570.0,0.99392388]
[1755017189441,4.89e-05,119580.0,119570.0,0.99692388]
[1755017189641,4.89e-05,119580.0,119570.0,1.19592388]
[1755017190044,4.89e-05,119580.0,119570.0,1.20092388]
[1755017190267,4.89e-05,119580.0,119570.0,0.63691528]
[1755017190469,4.89e-05,119580.0,119570.0,1.20092388]
[1755017191971,4.89e-05,119580.0,119570.0,1.60334488]
[1755017192410,4.89e-05,119580.0,119570.0,1.62834488]
[1755017193724,4.89e-05,119580.0,119570.0,1.65334488]
[1755017194346,4.89e-05,119580.0,119570.0,1.8207939]
[1755017194664,7.03e-06,119580.0,119570.0,1.8207939]
[1755017194901,0.16721026,119610.0,119570.0,1.8207939]
[1755017195115,0.17025026,119610.0,119600.0,0.59993736]
[1755017195330,0.17227026,119610.0,119600.0,0.73221736]
[1755017195546,0.07034583,119620.0,119610.0,0.16721009]
[1755017195750,0.07236583,119620.0,119610.0,0.25190547]
[1755017195968,0.23956195,119620.0,119610.0,0.24993334]
[1755017196172,0.07236583,119620.0,119610.0,0.24993334]
[1755017196382,0.07236583,119620.0,119610.0,0.25836447]
[1755017196794,0.07236583,119620.0,119610.0,0.26050447]
[1755017197649,0.23956195,119620.0,119610.0,0.26050447]
[1755017198085,0.17325612,119620.0,119610.0,0.25836447]
[1755017198298,0.00606,119620.0,119610.0,0.26050447]
[1755017198968,0.00506,119620.0,119610.0,0.26050447]
[1755017199200,0.17225612,119620.0,119610.0,0.26050447]
[1755017199422,0.17325612,119620.0,119610.0,0.25836447]
[1755017199877,0.17225612,119620.0,119610.0,0.25836447]
[1755017200518,0.17425612,119620.0,119610.0,0.25836447]
[1755017201173,0.00706,119620.0,119610.0,0.25836447]
[1755017201590,0.17425612,119620.0,119610.0,0.25836447]